Workbook

Sheet LETNO POROČILO - VINO
A1: REPUBLIKA SLOVENIJA
A2: MINISTRSTVO ZA KMETIJSTVO, GOZDARSTVO IN PREHRANO | F2: LETNO TRŽNO POROČILO VINO - 2020
A3: Agencija Republike Slovenije za
A4: kmetijske trge in razvoj podeželja
A5: Sektor za kmetijske trge
A6: Dunajska cesta 160, 1000 Ljubljana | E6: Reprezentativni trg so pridelovalci, ki pridelajo nad 500.000 l vina letno in prejemniki podpore iz III. poglavja in podpore
E7: iz 11. člena Uredbe o ureditvi trga z vinom, ki morajo agenciji prijaviti cene in prodane količine vina, ne glede na letno pridelano količino.
A8: T: 01 580 77 92
A9: E: aktrp@gov.si
A10: www.arsktrp.gov.si
E11: Pravilnik o registru pridelovalcev grozdja in vina (Ur. list RS, št. 16/07, 62/09) z dne 23.02.2007 in Uredba o ureditvi trga z vinom (Ur. list RS, št. 69/08, 77/08, 27/09, 29/10, 35/11, 6/12, 24/13, 66/2014)
E13: Legenda:
A14: Številka: 3305-14/2021/151 | E14: SGP – slovensko geografsko poreklo
E15: EU poreklo – vino brez označbe porekla/geografske označbe s poreklom iz Evropske unije
E16: SGP - tretje države – vino slovenskega geografskega porekla prodanega v tretje države
E17: N.P. – ni prodaje

Sheet OSNOVNO POROČILO
B2: Tabela 1: Povprečne ponderirane letne cene in količine za vino, prodano v Sloveniji in EU v letu 2020
B4: Poreklo | C4: Kakovost vina | D4: Barva | E4: Skupina trgov | F4: Povprečna cena (EUR/100 l) | G4: Količina (l)
C5: namizno | D5: belo | E5: RS | F5: 87.14992127 | G5: 454469
C6: namizno | D6: belo | E6: EU | F6: 1054.870521 | G6: 8997
C7: namizno | D7: rdeče | E7: RS | F7: 94.94610894 | G7: 189591
C8: namizno | D8: rdeče | E8: EU | F8: 46.57760676 | G8: 151761
C9: deželno | D9: belo | E9: RS | F9: 175.4653584 | G9: 675756
C10: deželno | D10: belo | E10: EU | F10: 30.66082908 | G10: 3652074
C11: deželno | D11: rdeče | E11: RS | F11: 109.0307913 | G11: 806381
B12: SGP | C12: deželno | D12: rdeče | E12: EU | F12: 25.30678616 | G12: 610777
C13: kakovostno | D13: belo | E13: RS | F13: 256.5410231 | G13: 8334934
C14: kakovostno | D14: belo | E14: EU | F14: 283.9061999 | G14: 1406928
C15: kakovostno | D15: rdeče | E15: RS | F15: 251.8000317 | G15: 3290323
C16: kakovostno | D16: rdeče | E16: EU | F16: 258.014649 | G16: 214813
C17: vrhunsko | D17: belo | E17: RS | F17: 557.9671621 | G17: 936972
C18: vrhunsko | D18: belo | E18: EU | F18: 430.5016674 | G18: 173574
C19: vrhunsko | D19: rdeče | E19: RS | F19: 535.5448972 | G19: 644555
C20: vrhunsko | D20: rdeče | E20: EU | F20: 304.523963 | G20: 120590
B21: EU poreklo | C21: brez označbe porekla | F21: 275.81 | G21: 56747
B22: Poreklo iz tretjih držav | C22: brez označbe porekla | F22: 252.2966182 | G22: 187117
F23: KOLIČINA SKUPAJ | G23: =SUM(G5:G22) -> 21916359
B25: Tabela 2: Povprečne prodajne cene vina SGP in količine – prodano v tretje države v letu 2020
B27: Poreklo | C27: Kakovost | D27: Barva | E27: Povprečna cena (EUR/100 l) | F27: Količina (l)
C28: namizno | D28: belo | E28: 1144.384483 | F28: 8454
C29: namizno | D29: rdeče | E29: 973.6838728 | F29: 2169
C30: deželno | D30: belo | E30: 494.7227229 | F30: 16857
B31: SGP – tretje države | C31: deželno | D31: rdeče | E31: 272.6124476 | F31: 4290
C32: kakovostno | D32: belo | E32: 308.6133548 | F32: 652533
C33: kakovostno | D33: rdeče | E33: 406.3257212 | F33: 183136
C34: vrhunsko | D34: belo | E34: 548.337335 | F34: 50785
C35: vrhunsko | D35: rdeče | E35: 553.0616449 | F35: 101133
E36: KOLIČINA SKUPAJ | F36: =SUM(F28:F35) -> 1019357
B38: Tabela 3: Primerjava ponderirane letne cene in količine za vino slovenskega geografskega porekla glede na kakovost vina v letih od 2016 do 2020 (prodano v Sloveniji in EU)
C40: 2016 | D40: 2017 | E40: 2018 | F40: 2019 | G40: 2020
B41: Vino–namizno (EUR/100 l) | C41: 120.31 | D41: 124.13 | E41: 213.1 | F41: 148.79 | G41: 92.15400199
B42: Vino–deželno (EUR/100 l) | C42: 143.7 | D42: 126.14 | E42: 135.69 | F42: 134.39 | G42: 58.12449859
B43: Vino–kakovostno (EUR/100 l) | C43: 241.35 | D43: 247.45 | E43: 263.85 | F43: 294.54 | G43: 258.2937217
B44: Vino–vrhunsko (EUR/100 l) | C44: 605.92 | D44: 543.55 | E44: 547.23 | F44: 534.25 | G44: 522.1724634
B45: Skupna količina v litrih | C45: 21621734 | D45: 21867490 | E45: 19956450 | F45: 20442265 | G45: =(G23-G22-G21) -> 21672495
B48: Grafikon 1: Primerjava ponderirane letne cene za vino glede na kakovost vina v Sloveniji v letih od 2016 do 2020

Sheet NAMIZNO VINO
B2: Tabela 4: Prodajne cene namiznega vina v EUR/100 l v letu 2020
B5: NAMIZNO VINO | C5: I. trimesečje 2020 | D5: II. Trimesečje 2020 | E5: III. Trimesečje 2020 | F5: IV. Trimesečje 2020
B6: cena belo RS | C6: 89.68 | D6: 77.54 | E6: 83.45 | F6: 111.99
B7: cena belo EU | C7: 979.89 | D7: 796.22 | E7: 949.55 | F7: 1393.1
B8: cena rdeče RS | C8: 108.96 | D8: 83.26 | E8: 104.94 | F8: 92.78
B9: cena rdeče EU | C9: 40.02 | D9: 39.32 | E9: 50.46 | F9: 1526.67
B10: povprečna cena | C10: =(C6*C11+C8*C13+C7*C12+C9*C14)/C15 -> 89.11240826 | D10: =(D6*D11+D8*D13+D7*D12+D9*D14)/D15 -> 75.03942532 | E10: =(E6*E11+E8*E13+E7*E12+E9*E14)/E15 -> 91.63305198 | F10: 132.4801192
B11: količina belo RS | C11: 106468 | D11: 134706 | E11: 149724 | F11: 63571
B12: količina belo EU | C12: 1825 | D12: 1309 | E12: 3399 | F12: 2464
B13: količina rdeče RS | C13: 39478 | D13: 62617 | E13: 30266 | F13: 57230
B14: količina rdeče EU | C14: 50306 | D14: 50270 | E14: 50849 | F14: 336
B15: količina skupaj | C15: =SUM(C11:C14) -> 198077 | D15: =SUM(D11:D14) -> 248902 | E15: =SUM(E11:E14) -> 234238 | F15: 123601
B18: Grafikon 1: Gibanje prodajnih cen in prodanih količin namiznega belega vina v letu 2020, prodanega v RS oziroma v EU
B46: Grafikon 2: Gibanje prodajnih cen in prodanih količin namiznega rdečega vina v letu 2020, prodanega v RS oziroma v EU

Sheet DEŽELNO VINO
B2: Tabela 5: Prodajne cene deželnega vina v EUR/100 l v letu 2020
B4: DEŽELNO VINO | C4: I. trimesečje 2020 | D4: II. Trimesečje 2020 | E4: III. Trimesečje 2020 | F4: IV. Trimesečje 2020
B5: cena belo RS | C5: 196.24 | D5: 168.54 | E5: 181.08 | F5: 164.94
B6: cena belo EU | C6: 43.45 | D6: 36.71 | E6: 10.16 | F6: 555.41
B7: cena rdeče RS | C7: 122.44 | D7: 141 | E7: 77.05 | F7: 121.06
B8: cena rdeče EU | C8: 348.33 | D8: 28.54 | E8: 8.35 | F8: 56.12
B9: povprečna cena | C9: =(C5*C10+C6*C11+C7*C12+C8*C13)/C14 -> 60.62039365 | D9: 61.25761795 | E9: 37.52608054 | F9: 145.005122
B10: količina belo RS | C10: 105725 | D10: 179927 | E10: 195517 | F10: 194587
B11: količina belo EU | C11: 1629543 | D11: 703488 | E11: 1315475 | F11: 3568
B12: količina rdeče RS | C12: 220457 | D12: 159471 | E12: 299573 | F12: 126880
B13: količina rdeče EU | C13: 45 | D13: 450847 | E13: 133950 | F13: 25935
B14: količina skupaj | C14: =SUM(C10:C13) -> 1955770 | D14: =SUM(D10:D13) -> 1493733 | E14: =SUM(E10:E13) -> 1944515 | F14: 350970
E15: *opomba: v 3.trimesečju je v poročilo vključeno vino, ki je bilo oddano v destilacijo
B17: Grafikon 3: Gibanje prodajnih cen in prodanih količin deželnega vina v letu 2020, prodanega v RS oziroma v EU

Sheet KAKOVOSTNO VINO
B2: Tabela 6: Primerjava prodajnih cen kakovostnega vina v EUR/100 l v letu 2020
B4: KAKOVOSTNO VINO | C4: I. trimesečje 2020 | D4: II. Trimesečje 2020 | E4: III. Trimesečje 2020 | F4: IV. Trimesečje 2020
B5: cena belo RS | C5: 219.93 | D5: 231.38 | E5: 237.24 | F5: 314.03
B6: cena belo EU | C6: 299.01 | D6: 288.74 | E6: 259.98 | F6: 304.44
B7: cena rdeče RS | C7: 244.42 | D7: 240.36 | E7: 241.04 | F7: 280.97
B8: cena rdeče EU | C8: 359.46 | D8: 482.15 | E8: 125.87 | F8: 507.89
B9: povprečna cena | C9: =(C5*C10+C6*C11+C7*C12+C8*C13)/C14 -> 238.2165484 | D9: 243.2374754 | E9: 237.4492979 | F9: 306.9341366
B10: količina belo RS | C10: 1444526 | D10: 1819476 | E10: 2511489 | F10: 2559443
B11: količina belo EU | C11: 289873 | D11: 350000 | E11: 490791 | F11: 276264
B12: količina rdeče RS | C12: 720423 | D12: 797856 | E12: 932788 | F12: 839256
B13: količina rdeče EU | C13: 35663 | D13: 33252 | E13: 124410 | F13: 21488
B14: količina skupaj | C14: =SUM(C10:C13) -> 2490485 | D14: 3000584 | E14: 4059478 | F14: 3696451
B17: Grafikon 4: Gibanje prodajnih cen in prodanih količin kakovostnega vina v letu 2020, prodanega v RS oziroma v EU

Sheet VRHUNSKO VINO
B2: Tabela 7: Primerjava prodajnih cen kakovostnega vina v EUR/100 l v letih 2020
B4: VRHUNSKO VINO | C4: I. trimesečje 2020 | D4: II. Trimesečje 2020 | E4: III. Trimesečje 2020 | F4: IV. Trimesečje 2020
B5: cena belo RS | C5: 557.26 | D5: 515.84 | E5: 548.84 | F5: 582.09
B6: cena belo EU | C6: 368.74 | D6: 419.74 | E6: 451.59 | F6: 470.13
B7: cena rdeče RS | C7: 557.69 | D7: 510.69 | E7: 521.88 | F7: 549.28
B8: cena rdeče EU | C8: 427.24 | D8: 90.54 | E8: 508.24 | F8: 584.84
B9: povprečna cena | C9: =(C5*C10+C6*C11+C7*C12+C8*C13)/C14 -> 524.2695641 | D9: 437.9974273 | E9: 529.5577841 | F9: 563.4393039
B10: količina belo RS | C10: 123168 | D10: 155962 | E10: 277043 | F10: 380799
B11: količina belo EU | C11: 39245 | D11: 40451 | E11: 46444 | F11: 47434
B12: količina rdeče RS | C12: 112850 | D12: 129732 | E12: 175027 | F12: 226946
B13: količina rdeče EU | C13: 17841 | D13: 59957 | E13: 17687 | F13: 25105
B14: količina skupaj | C14: =SUM(C10:C13) -> 293104 | D14: 386102 | E14: 516201 | F14: 680284
B17: Grafikon 5: Gibanje prodajnih cen in prodanih količin kakovostnega vina za leto 2020

Sheet SGP tretje države
B2: Tabela 8: Poročilo o prodajnih cenah vina SGP po posamezni državi - tretje države v letu 2020
B5: Poreklo | C5: Kakovost vina | D5: Barva | E5: Skupina trgov | F5: Naziv države | G5: Količina v litrih | H5: Ponderirana cena EUR/liter
B6: Slovensko geografsko poreklo | C6: kakovostno | D6: rdeče | E6: tretje države | F6: Albanija | G6: 400 | H6: 1.5
B7: Slovensko geografsko poreklo | C7: kakovostno | D7: belo | E7: tretje države | F7: Albanija | G7: 367 | H7: 2.940932425
B8: Slovensko geografsko poreklo | C8: vrhunsko | D8: rdeče | E8: tretje države | F8: Albanija | G8: 1737 | H8: 3.885350777
B9: Slovensko geografsko poreklo | C9: vrhunsko | D9: belo | E9: tretje države | F9: Albanija | G9: 1710 | H9: 4.437185263
B10: Slovensko geografsko poreklo | C10: kakovostno | D10: belo | E10: tretje države | F10: Avstralija | G10: 1913 | H10: 6.92
B11: Slovensko geografsko poreklo | C11: kakovostno | D11: rdeče | E11: tretje države | F11: Avstralija | G11: 135 | H11: 24.93
B12: Slovensko geografsko poreklo | C12: kakovostno | D12: belo | E12: tretje države | F12: Belorusija | G12: 293 | H12: 8.4462
B13: Slovensko geografsko poreklo | C13: kakovostno | D13: rdeče | E13: tretje države | F13: Belorusija | G13: 68 | H13: 6.6
B14: Slovensko geografsko poreklo | C14: kakovostno | D14: belo | E14: tretje države | F14: Bosna in Hercegovina | G14: 58158 | H14: 1.643254479
B15: Slovensko geografsko poreklo | C15: kakovostno | D15: rdeče | E15: tretje države | F15: Bosna in Hercegovina | G15: 11917 | H15: 4.499449148
B16: Slovensko geografsko poreklo | C16: vrhunsko | D16: belo | E16: tretje države | F16: Bosna in Hercegovina | G16: 5135 | H16: 3.820158929
B17: Slovensko geografsko poreklo | C17: vrhunsko | D17: rdeče | E17: tretje države | F17: Bosna in Hercegovina | G17: 1265 | H17: 4.226817866
B18: Slovensko geografsko poreklo | C18: kakovostno | D18: belo | E18: tretje države | F18: Brazilija | G18: 13626 | H18: 2.07178428
B19: Slovensko geografsko poreklo | C19: kakovostno | D19: rdeče | E19: tretje države | F19: Brazilija | G19: 7668 | H19: 3.802333568
B20: Slovensko geografsko poreklo | C20: vrhunsko | D20: belo | E20: tretje države | F20: Brazilija | G20: 1143 | H20: 2.0852
B21: Slovensko geografsko poreklo | C21: kakovostno | D21: belo | E21: tretje države | F21: Črna gora | G21: 23247 | H21: 1.797831823
B22: Slovensko geografsko poreklo | C22: kakovostno | D22: rdeče | E22: tretje države | F22: Črna gora | G22: 112 | H22: 8.2667
B23: Slovensko geografsko poreklo | C23: vrhunsko | D23: belo | E23: tretje države | F23: Črna gora | G23: 405 | H23: 5.64
B24: Slovensko geografsko poreklo | C24: kakovostno | D24: rdeče | E24: tretje države | F24: Hong Kong | G24: 31 | H24: 18.0163
B25: Slovensko geografsko poreklo | C25: kakovostno | D25: belo | E25: tretje države | F25: Hong Kong | G25: 356 | H25: 11.26579213
B26: Slovensko geografsko poreklo | C26: vrhunsko | D26: rdeče | E26: tretje države | F26: Hong Kong | G26: 3240 | H26: 9.5596
B27: Slovensko geografsko poreklo | C27: vrhunsko | D27: belo | E27: tretje države | F27: Hong Kong | G27: 990 | H27: 6.2101
B28: Slovensko geografsko poreklo | C28: kakovostno | D28: belo | E28: tretje države | F28: Islandija | G28: 153 | H28: 7.5671
B29: Slovensko geografsko poreklo | C29: kakovostno | D29: rdeče | E29: tretje države | F29: Islandija | G29: 54 | H29: 7.7867
B30: Slovensko geografsko poreklo | C30: kakovostno | D30: belo | E30: tretje države | F30: Izrael | G30: 5436 | H30: 4.777554139
B31: Slovensko geografsko poreklo | C31: kakovostno | D31: rdeče | E31: tretje države | F31: Izrael | G31: 225 | H31: 7.3333
B32: Slovensko geografsko poreklo | C32: kakovostno | D32: belo | E32: tretje države | F32: Japonska | G32: 16201 | H32: 6.914694186
B33: Slovensko geografsko poreklo | C33: kakovostno | D33: rdeče | E33: tretje države | F33: Japonska | G33: 29597 | H33: 3.409954989
B34: Slovensko geografsko poreklo | C34: namizno | D34: belo | E34: tretje države | F34: Japonska | G34: 2285 | H34: 10.12217462
B35: Slovensko geografsko poreklo | C35: namizno | D35: rdeče | E35: tretje države | F35: Japonska | G35: 1272 | H35: 9.362475472
B36: Slovensko geografsko poreklo | C36: vrhunsko | D36: rdeče | E36: tretje države | F36: Japonska | G36: 3321 | H36: 4.58788374
B37: Slovensko geografsko poreklo | C37: vrhunsko | D37: belo | E37: tretje države | F37: Japonska | G37: 3339 | H37: 5.868071698
B38: Slovensko geografsko poreklo | C38: kakovostno | D38: belo | E38: tretje države | F38: Kanada | G38: 4649 | H38: 6.018914132
B39: Slovensko geografsko poreklo | C39: kakovostno | D39: rdeče | E39: tretje države | F39: Kanada | G39: 2345 | H39: 3.950312026
B40: Slovensko geografsko poreklo | C40: namizno | D40: belo | E40: tretje države | F40: Kanada | G40: 1365 | H40: 6.95603956
B41: Slovensko geografsko poreklo | C41: namizno | D41: rdeče | E41: tretje države | F41: Kanada | G41: 90 | H41: 6
B42: Slovensko geografsko poreklo | C42: vrhunsko | D42: belo | E42: tretje države | F42: Kanada | G42: 505 | H42: 4.997715644
B43: Slovensko geografsko poreklo | C43: kakovostno | D43: belo | E43: tretje države | F43: Liechtenstein | G43: 1215 | H43: 1.8
B44: Slovensko geografsko poreklo | C44: vrhunsko | D44: belo | E44: tretje države | F44: Liechtenstein | G44: 203 | H44: 18.64654187
B45: Slovensko geografsko poreklo | C45: kakovostno | D45: belo | E45: tretje države | F45: Ljudska republika Kitajska | G45: 5320 | H45: 8.05392344
B46: Slovensko geografsko poreklo | C46: kakovostno | D46: rdeče | E46: tretje države | F46: Ljudska republika Kitajska | G46: 18064 | H46: 6.783663087
B47: Slovensko geografsko poreklo | C47: vrhunsko | D47: belo | E47: tretje države | F47: Ljudska republika Kitajska | G47: 6168 | H47: 6.750898573
B48: Slovensko geografsko poreklo | C48: vrhunsko | D48: rdeče | E48: tretje države | F48: Ljudska republika Kitajska | G48: 73640 | H48: 5.569600756
B49: Slovensko geografsko poreklo | C49: vrhunsko | D49: belo | E49: tretje države | F49: Malezija | G49: 4 | H49: 2.6666
B50: Slovensko geografsko poreklo | C50: vrhunsko | D50: rdeče | E50: tretje države | F50: Malezija | G50: 5 | H50: 2.6666
B51: Slovensko geografsko poreklo | C51: kakovostno | D51: belo | E51: tretje države | F51: Norveška | G51: 915 | H51: 10.62488525
B52: Slovensko geografsko poreklo | C52: namizno | D52: belo | E52: tretje države | F52: Norveška | G52: 1683 | H52: 14.61897861
B53: Slovensko geografsko poreklo | C53: vrhunsko | D53: belo | E53: tretje države | F53: Norveška | G53: 662 | H53: 3.72627855
B54: Slovensko geografsko poreklo | C54: vrhunsko | D54: rdeče | E54: tretje države | F54: Norveška | G54: 144 | H54: 4.07083125
B55: Slovensko geografsko poreklo | C55: kakovostno | D55: belo | E55: tretje države | F55: Republika Koreja | G55: 4770 | H55: 18.82925849
B56: Slovensko geografsko poreklo | C56: kakovostno | D56: rdeče | E56: tretje države | F56: Republika Koreja | G56: 270 | H56: 22.87185
B57: Slovensko geografsko poreklo | C57: namizno | D57: belo | E57: tretje države | F57: Republika Koreja | G57: 1197 | H57: 13.31322481
B58: Slovensko geografsko poreklo | C58: namizno | D58: rdeče | E58: tretje države | F58: Republika Koreja | G58: 288 | H58: 10.6666
B59: Slovensko geografsko poreklo | C59: kakovostno | D59: belo | E59: tretje države | F59: Ruska federacija | G59: 6900 | H59: 3.372430435
B60: Slovensko geografsko poreklo | C60: kakovostno | D60: rdeče | E60: tretje države | F60: Ruska federacija | G60: 252 | H60: 21.1286
B61: Slovensko geografsko poreklo | C61: kakovostno | D61: belo | E61: tretje države | F61: Singapur | G61: 41 | H61: 18.8088
B62: Slovensko geografsko poreklo | C62: kakovostno | D62: rdeče | E62: tretje države | F62: Singapur | G62: 9 | H62: 18.8088
B63: Slovensko geografsko poreklo | C63: kakovostno | D63: belo | E63: tretje države | F63: Srbija | G63: 40220 | H63: 2.476466487
B64: Slovensko geografsko poreklo | C64: kakovostno | D64: rdeče | E64: tretje države | F64: Srbija | G64: 832 | H64: 23.31358185
B65: Slovensko geografsko poreklo | C65: vrhunsko | D65: belo | E65: tretje države | F65: Srbija | G65: 4961 | H65: 4.679841282
B66: Slovensko geografsko poreklo | C66: deželno | D66: belo | E66: tretje države | F66: Švica | G66: 18 | H66: 10.6666
B67: Slovensko geografsko poreklo | C67: deželno | D67: rdeče | E67: tretje države | F67: Švica | G67: 90 | H67: 10.6666
B68: Slovensko geografsko poreklo | C68: kakovostno | D68: belo | E68: tretje države | F68: Švica | G68: 3151 | H68: 8.269739194
B69: Slovensko geografsko poreklo | C69: kakovostno | D69: rdeče | E69: tretje države | F69: Švica | G69: 1729 | H69: 15.89797669
B70: Slovensko geografsko poreklo | C70: namizno | D70: belo | E70: tretje države | F70: Švica | G70: 17 | H70: 10.6666
B71: Slovensko geografsko poreklo | C71: namizno | D71: rdeče | E71: tretje države | F71: Švica | G71: 15 | H71: 10.6666
B72: Slovensko geografsko poreklo | C72: vrhunsko | D72: belo | E72: tretje države | F72: Švica | G72: 1402 | H72: 9.098817332
B73: Slovensko geografsko poreklo | C73: vrhunsko | D73: rdeče | E73: tretje države | F73: Švica | G73: 1244 | H73: 9.824769614
B74: Slovensko geografsko poreklo | C74: kakovostno | D74: belo | E74: tretje države | F74: Ukrajina | G74: 6750 | H74: 3.170633333
B75: Slovensko geografsko poreklo | C75: namizno | D75: rdeče | E75: tretje države | F75: Ukrajina | G75: 135 | H75: 10.6666
B76: Slovensko geografsko poreklo | C76: namizno | D76: belo | E76: tretje države | F76: Ukrajina | G76: 319 | H76: 18.253
B77: Slovensko geografsko poreklo | C77: deželno | D77: rdeče | E77: tretje države | F77: Združene države Amerike | G77: 4200 | H77: 2.555971429
B78: Slovensko geografsko poreklo | C78: deželno | D78: belo | E78: tretje države | F78: Združene države Amerike | G78: 16839 | H78: 4.941113522
B79: Slovensko geografsko poreklo | C79: kakovostno | D79: belo | E79: tretje države | F79: Združene države Amerike | G79: 458852 | H79: 2.923772252
B80: Slovensko geografsko poreklo | C80: kakovostno | D80: rdeče | E80: tretje države | F80: Združene države Amerike | G80: 109428 | H80: 3.309046865
B81: Slovensko geografsko poreklo | C81: namizno | D81: belo | E81: tretje države | F81: Združene države Amerike | G81: 1341 | H81: 11.14378121
B82: Slovensko geografsko poreklo | C82: namizno | D82: rdeče | E82: tretje države | F82: Združene države Amerike | G82: 207 | H82: 10.96756522
B83: Slovensko geografsko poreklo | C83: vrhunsko | D83: belo | E83: tretje države | F83: Združene države Amerike | G83: 24158 | H83: 5.565880139
B84: Slovensko geografsko poreklo | C84: vrhunsko | D84: rdeče | E84: tretje države | F84: Združene države Amerike | G84: 16537 | H84: 4.72018692
B85: Slovensko geografsko poreklo | C85: namizno | D85: belo | E85: tretje države | F85: Združeno kraljestvo | G85: 247 | H85: 10.6666
B86: Slovensko geografsko poreklo | C86: namizno | D86: rdeče | E86: tretje države | F86: Združeno kraljestvo | G86: 162 | H86: 10.666
F87: KOLIČINA SKUPAJ | G87: =SUM(G6:G86) -> 1019357

Sheet GIBANJE PRODAJNIH CEN SGP
B2: Tabela 9: Prodajne cene vina SGP v tretjih državah v EUR/100 l po trimesečjih v letu 2020
B4: Poreklo | C4: kakovost/barva | D4: I. trimesečje 2020 | E4: II. Trimesečje 2020 | F4: III. Trimesečje 2020 | G4: IV. Trimesečje 2020
C5: namizno belo | D5: 1066.66 | E5: 1181.67 | F5: 1014.66661 | G5: 1211.230671
C6: namizno rdeče | E6: 902.49 | F6: 1032.602881 | G6: 1046.372174
C7: deželno belo | D7: 439.99 | E7: 578.1 | F7: 607.9 | G7: 1066.66
B8: SGP | C8: deželno rdeče | D8: 256.41 | E8: 270.88 | F8: 245.53 | G8: 350.9034783
C9: kakovostno belo | D9: 335.86 | E9: 341.55 | F9: 291.1786733 | G9: 283.4491995
C10: kakovostno rdeče | D10: 386.76 | E10: 349.75 | F10: 339.177211 | G10: 486.2533984
C11: vrhunsko belo | D11: 680.94 | E11: 425.44 | F11: 521.1841646 | G11: 525.5544232
C12: vrhunsko rdeče | D12: 511.42 | E12: 384.61 | F12: 762.305771 | G12: 592.018348
B14: Grafikon 6: Gibanje prodajnih cen vina SGP v tretjih državah za leto 2020

Sheet POREKLO EU IN TRETJE DRŽAVE
B2: Tabela 10: Prodajne cene vina porekla EU in tretjih držav v EUR/100 l po trimesečjih v letu 2020
B4: POREKLO EU IN TRETJE DRŽAVE | C4: I. trimesečje | D4: II. trimesečje | E4: III. trimesečje | F4: IV. trimesečje
B5: cena EU poreklo | D5: 275.81
B6: cena tretje države | C6: 246.45 | D6: 176.74 | E6: 229.32 | F6: 275.79
B8: količina EU poreklo | D8: 56747
B9: količina tretje države | C9: 36715 | D9: 15903 | E9: 37521 | F9: 96978
B10: količina skupaj | C10: =SUM(C8:C9) -> 36715 | D10: 72650 | E10: =SUM(E8:E9) -> 37521 | F10: =SUM(F8:F9) -> 96978
